Cogmind - Beta 15 *** ADVENTURER MODE // 2025.06.22 @ 14:22:52 Player: Gentle Jesus Result: Destroyed by IW-4LT(j) with Overtuned Pulse Rifle Performance ------------- Evolutions (0) 0 Regions Visited (4) 800 Robots Destroyed (22) 110 Value Destroyed (596) 596 Prototype IDs (13) 260 Alien Tech Used (0) 0 Bonus (800) 800 TOTAL SCORE: 2566 Bonus ------- Registered with UFD 300 Met Optimus in HQ 500 Cogmind --------- Core Integrity 0/250 Matter 300/300 Energy 265/265 System Corruption 0% Temperature Cool (12) Movement Rolling (140) Ox4 Location -8/Scraptown Parts ------- > --- POWER (1) -------- Improved Ion Engine > --- PROPULSION (2) --- Wheel > --- UTILITY (2) ------ High-capacity Storage Unit Improved Weapon Shielding > --- WEAPON (2) ------- (None) > --- INVENTORY (20) --- Light Deuterium Engine Scrap Suit Cooling System Advanced Signal Interpreter Active Sensor Suite Hacking Suite Scrapoid Pod Beam Rifle Overtuned Pulse Rifle Ion Cannon Battle Cannon Long-range Missile Launcher CPS Tube (2) Vortex Trap Scrap Shield Fragment (49) Peak State ------------ > --- POWER ------------ Improved Ion Engine > --- PROPULSION ------- Wheel Compact Wheel > --- UTILITY ---------- High-capacity Storage Unit Improved Weapon Shielding > --- WEAPON ----------- Junk Cannon > --- INVENTORY -------- Scrap Suit Cooling System Advanced Signal Interpreter Active Sensor Suite Hacking Suite Scrapoid Pod Beam Rifle Ion Cannon Battle Cannon Long-range Missile Launcher CPS Tube Scrap Shield Fragment [Rating: 27] Favorites ----------- Power Light Ion Engine Engine Light Ion Engine Propulsion Compact Wheel Wheel Compact Wheel Utility High-capacity Storage Unit Device Seismic Detector Storage High-capacity Storage Unit Protection Improved Weapon Shielding Weapon Medium Laser Energy Gun Medium Laser Ballistic Cannon Battle Cannon Launcher Grenade Launcher Special Weapon Junk Cannon Build | -11 -10 -10 -10 -8 ------- Run | Yrd Mat Min Sub Scr Slots Evolved . | . . . . . Power . | . . . . . Propulsion . | . . . . . Utility . | . . . . . Weapon . | . . . . . Parts Attached 18 | 5 4 . 7 2 Power 4 | . 1 . 2 1 Engine 4 | . 1 . 2 1 Core . | . . . . . Reactor . | . . . . . Propulsion 5 | 2 . . 3 . Treads . | . . . . . Leg . | . . . . . Wheel 5 | 2 . . 3 . Hover . | . . . . . Flight . | . . . . . Utility 4 | 1 2 . 1 . Device 1 | . 1 . . . Storage 2 | 1 1 . . . Processor . | . . . . . Hackware . | . . . . . Protection 1 | . . . 1 . Artifact . | . . . . . Weapon 5 | 2 1 . 1 1 Energy Gun 2 | 2 . . . . Energy Cannon . | . . . . . Ballistic Gun . | . . . . . Ballistic Cannon 1 | . . . 1 . Launcher 1 | . 1 . . . Special Weapon 1 | . . . . 1 Impact Weapon . | . . . . . Slashing Weapon . | . . . . . Piercing Weapon . | . . . . . Special Melee Weapon . | . . . . . Unidentified Prototypes 1 | . . . . 1 Parts Lost 8 | . . . 7 1 Power 2 | . . . 2 . Propulsion 4 | . . . 3 1 Utility 1 | . . . 1 . Weapon 1 | . . . 1 . Highest Loss Streak 2 | . . . 2 1 To Critical Strikes . | . . . . . Average Backups 7 | 2 4 7 6 9 Power . | 1 1 1 . . Propulsion 1 | . 3 3 1 . Utility 3 | . . 2 3 4 Weapon 2 | . . 1 1 3 Tool/Special . | . . . . . Unused Backups 10 | . . . . 10 Power . | . . . . . Propulsion . | . . . . . Utility 5 | . . . . 5 Weapon 3 | . . . . 3 Tool/Special 2 | . . . . 2 Average Slot Usage (%) 85 | . 99 99 96 71 Engine 13 | . 14 14 12 14 Wheel 27 | . 28 28 26 27 Device 6 | . 13 13 10 . Storage 14 | . 14 14 14 14 Protection 7 | . . . 3 14 Energy Gun 9 | . 19 14 18 . Launcher 5 | . 8 14 8 . Peak Build Rating 27 | 5 7 8 12 27 Average Rating 10 | 4 6 7 9 13 On Entrance 6 | . 5 7 8 12 Naked Turns . | . . . . . Heaviest Build 52 | 9 49 49 52 52 Greatest Support 32 | 32 32 32 32 26 Greatest Overweight (x) 5 | . 1 1 5 4 Average Overweight (x) 1 | . . 1 1 1 Largest Inventory Capacity 20 | 8 20 20 20 20 Average Capacity 19 | 7 18 20 20 20 Most Carried 19 | 6 5 9 12 19 Average Carried 10 | 2 4 8 9 14 Final Capacity 20 | 8 20 20 20 20 Final Carried 19 | 6 5 9 7 19 Class Distribution -------------------- 100% | Mutant Dominant Class ---------------- Mutant | -10/Materials Mutant | -10/Mines Mutant | -10/Subcaves Mutant | -8/Scraptown Resources | -11 -10 -10 -10 -8 ----------- Run | Yrd Mat Min Sub Scr Matter Collected 810 | 250 13 . 361 186 Remotely . | . . . . . Salvage Created 408 | 139 13 . 256 . Parts 25 | 6 1 . 18 . Haulers Intercepted . | . . . . . Recyclers Shooed 1 | 1 . . . . Parts Field Recycled . | . . . . . Retrieved Matter . | . . . . . Parts Self-Destructed 2 | . . . 2 . Prevented . | . . . . . Kills | -11 -10 -10 -10 -8 ------- Run | Yrd Mat Min Sub Scr Combat Hostiles Destroyed 16 | . 2 . 14 . Guns 3 | . . . 3 . Cannons 1 | . . . 1 . AOE 12 | . 2 . 10 . Classes Destroyed 6 | 2 1 . 3 . Tunneler 3 | 3 . . . . Recycler 1 | 1 . . . . Turret 2 | . . . 2 . Swarmer 4 | . . . 4 . Grunt 4 | . 2 . 2 . Subdweller 8 | . . . 8 . Best Kill Streak 4 | 4 2 . 4 . Combat Bots Only 4 | . 2 . 4 . Max Kills in Single Turn 2 | 1 2 . 2 . Gunslinging . | . . . . . Exploded 2 | . 2 . 2 . Melee . | . . . . . Uniques/NPCs Destroyed . | . . . . . Combat | -11 -10 -10 -10 -8 -------- Run | Yrd Mat Min Sub Scr Hostile Shots Fired 129 | . 10 . 114 5 Missed 54 | . 5 . 48 1 Hits 75 | . 5 . 66 4 Projectile 75 | . 5 . 66 4 Critical Strikes 1 | . . . 1 . Damage Taken 789 | . 34 12 699 44 Core 257 | . 4 12 225 16 Absorbed by Shields . | . . . . . Redirected to Shielding 81 | . . . 81 . Ignored by Resistances 212 | . 12 4 185 11 Core Remaining (%) 100 | 100 . . . . Volleys Fired 66 | 7 6 . 53 . Largest 2 | 2 2 . 2 . Hottest 100 | 100 100 . 100 . Shots Fired 122 | 14 7 . 101 . Gun 81 | 14 2 . 65 . Cannon 7 | . . . 7 . Launcher 34 | . 5 . 29 . Special . | . . . . . Kinetic 7 | . . . 7 . Thermal 81 | 14 2 . 65 . Explosive 34 | . 5 . 29 . Electromagnetic . | . . . . . Robot Hit Streak 30 | 12 3 . 30 . Robot Miss Streak 2 | 1 1 . 2 . Penetration Max . | . . . . . Secondary Targets . | . . . . . Shots Hit Robots 84 | 12 3 . 69 . Core Hits 44 | 5 4 . 35 . Critical Kills . | . . . . . Critical Parts Destroyed . | . . . . . Critical Strikes 8 | . . . 8 . Burn 7 | . . . 7 . Blast 1 | . . . 1 . Melee Attacks . | . . . . . Impact . | . . . . . Slashing . | . . . . . Piercing . | . . . . . Sneak Attacks . | . . . . . Combat Hostiles . | . . . . . Follow-up Attacks . | . . . . . Damage Inflicted 2681 | 162 285 . 2234 . Guns 723 | 162 . . 561 . Cannons 117 | . . . 117 . Explosions 1841 | . 285 . 1556 . Melee . | . . . . . Ramming . | . . . . . Kinetic 117 | . . . 117 . Thermal 723 | 162 . . 561 . Explosive 1841 | . 285 . 1556 . Electromagnetic . | . . . . . Impact . | . . . . . Slashing . | . . . . . Piercing . | . . . . . Highest Corruption . | . . . . . Average Corruption . | . . . . . Corruption Purged . | . . . . . Corruption Blocked . | . . . . . Overload Shots . | . . . . . Overflow Damage 20 | . . . 20 . Projectiles . | . . . . . Explosions 20 | . . . 20 . Melee . | . . . . . Knockbacks . | . . . . . Impact . | . . . . . Kinetic . | . . . . . Secondary . | . . . . . Self-Inflicted Damage 4 | . . . 4 . Shots 1 | . . . 1 . Rammed . | . . . . . Targets Rammed . | . . . . . Kicked . | . . . . . Crushed . | . . . . . Highest Temperature 73 | 73 39 . 11 . Average Temperature 25 | 33 15 . 5 . Received Heat Transfer 255 | . 18 . 213 24 Siege Activations . | . . . . . Martial Activations . | . . . . . Shielding Activations . | . . . . . Robots Disrupted . | . . . . . Combat Hostiles . | . . . . . Robots Corrupted . | . . . . . Combat Hostiles . | . . . . . Parts Fried . | . . . . . Impact Corruptions . | . . . . . Robots Melted . | . . . . . Combat Hostiles . | . . . . . Parts Melted 2 | 2 . . . . Heat Transferred 2664 | 481 . . 2183 . Parts Sabotaged . | . . . . . Parts Stolen . | . . . . . Parts Stripped . | . . . . . Power Chain Reactions . | . . . . . Alert | -11 -10 -10 -10 -8 ------- Run | Yrd Mat Min Sub Scr Maximum Alert Level . | . . . . . Low Security (%) 100 | 100 100 100 . . Level 1 . | . . . . . Level 2 . | . . . . . Level 3 . | . . . . . Level 4 . | . . . . . Level 5 . | . . . . . High Security . | . . . . . Max Security . | . . . . . Peak Influence 62 | 10 62 10 . . Initial 10 | . . 10 . . Average 5 | 2 15 . . . Influence Increases 472 | 20 72 . 380 . Destroy 0b10 Robot/C 200 | . 40 . 160 . Destroy 0b10 Robot/NC 20 | 20 . . . . Destroy Leader 20 | . 10 . 10 . Destroy Structure 22 | . 22 . . . Lose Combat Pursuer 210 | . . . 210 . Influence Decreases 472 | 20 40 32 320 60 Entered New Map 82 | . . 22 . 60 Time Decay 340 | 20 40 10 270 . Lost Part 50 | . . . 50 . Squads Dispatched 3 | . 3 . . . Investigation 3 | . 3 . . . Extermination . | . . . . . Reinforcement . | . . . . . Assault . | . . . . . Garrison . | . . . . . Intercept . | . . . . . Searches Triggered . | . . . . . Construction Impeded . | . . . . . Haulers Reinforced . | . . . . . Active Scanning Responses . | . . . . . Cargo Convoy Interrupts . | . . . . . Stealth | -11 -10 -10 -10 -8 --------- Run | Yrd Mat Min Sub Scr Distress Signals . | . . . . . Communications Jammed . | . . . . . Distress Signals . | . . . . . Times Spotted 32 | . 6 . 20 6 Peak Tracking Total 5 | . 4 . 5 2 Tactical Retreats 3 | . . . 3 . Traps | -11 -10 -10 -10 -8 ------- Run | Yrd Mat Min Sub Scr Traps Triggered 4 | . 2 1 1 . Indirectly . | . . . . . Trap Hack Attempts . | . . . . . Triggered . | . . . . . Disarmed . | . . . . . Reprogrammed . | . . . . . Reused . | . . . . . Traps Extracted . | . . . . . Installed . | . . . . . Triggered . | . . . . . Most Traps Carried 1 | . . . . 1 Machines | -11 -10 -10 -10 -8 ---------- Run | Yrd Mat Min Sub Scr Machines Disabled 3 | . . . 3 . Max in Single Turn 2 | . . . 2 . Machines Repaired . | . . . . . Machines Dismantled . | . . . . . Machines Sabotaged . | . . . . . Overloaded Fab Kills . | . . . . . Hacking | -11 -10 -10 -10 -8 --------- Run | Yrd Mat Min Sub Scr Machines Accessed 7 | . 1 1 1 4 Terminals 1 | . 1 . . . Fabricators . | . . . . . Repair Stations . | . . . . . Recycling Units . | . . . . . Scanalyzers . | . . . . . Garrison Access . | . . . . . Total Hacks 26 | . 4 1 4 17 Successful 24 | . 2 1 4 17 Failed 2 | . 2 . . . Catastrophic . | . . . . . Database Lockouts . | . . . . . Manual 2 | . 2 . . . Terminals 4 | . 4 . . . Fabricators . | . . . . . Repair Stations . | . . . . . Recycling Units . | . . . . . Scanalyzers . | . . . . . Garrison Access . | . . . . . Terminal Hacks 24 | . 2 1 4 17 Record 15 | . . . 4 11 Robot Analysis 5 | . . . . 5 Open Door 1 | . . 1 . . Locate Traps 1 | . 1 . . . Dispatch Records 1 | . 1 . . . Proto ID Catalog 1 | . . . . 1 Fabricator Hacks . | . . . . . Repair Station Hacks . | . . . . . Recycling Unit Hacks . | . . . . . Scanalyzer . | . . . . . Garrison Access Hacks . | . . . . . Unauthorized Hacks . | . . . . . Terminals . | . . . . . Fabricators . | . . . . . Repair Stations . | . . . . . Recycling Units . | . . . . . Scanalyzers . | . . . . . Garrison Access . | . . . . . Data Cores Recovered . | . . . . . Used . | . . . . . Hacking Detections 1 | . 1 . . . Full Trace Events 1 | . 1 . . . Feedback Events . | . . . . . Feedback Blocked . | . . . . . Robot Schematics Acquired . | . . . . . Robots Built . | . . . . . Authchips . | . . . . . Time . | . . . . . Total Robot Build Rating . | . . . . . Part Schematics Acquired . | . . . . . Parts Built . | . . . . . Authchips . | . . . . . Time . | . . . . . Total Part Build Rating . | . . . . . Parts Repaired . | . . . . . Time . | . . . . . Parts Recycled . | . . . . . Recycled Matter . | . . . . . Retrieved Matter . | . . . . . Retrieved Components . | . . . . . Parts Scanalyzed . | . . . . . Part Schematics Acquired . | . . . . . Parts Damaged . | . . . . . Bothacking | -11 -10 -10 -10 -8 ------------ Run | Yrd Mat Min Sub Scr Used RIF Installer . | . . . . . Robots Hacked . | . . . . . Non-combat . | . . . . . Combat . | . . . . . Robot Hacks Applied . | . . . . . Relay Couplers Released . | . . . . . Fabnet Peak Effective % . | . . . . . Robots Rewired . | . . . . . Allies Hacked . | . . . . . Hacks Repelled . | . . . . . Allies | -11 -10 -10 -10 -8 -------- Run | Yrd Mat Min Sub Scr Total Allies . | . . . . . Largest Group . | . . . . . Highest-Rated Group . | . . . . . Highest-Rated Ally . | . . . . . Total Orders . | . . . . . Ally Attacks . | . . . . . Total Damage . | . . . . . Kills . | . . . . . Allies Corrupted . | . . . . . Allies Melted . | . . . . . Intel | -11 -10 -10 -10 -8 ------- Run | Yrd Mat Min Sub Scr Active Infowar (turns) 946 | . 166 243 537 . Seismic 946 | . 166 243 537 . Robot Analysis Total 5 | . . . . 5 Derelict Logs Recovered 1 | . . 1 . . Drone Launches . | . . . . . Drone Recoveries . | . . . . . Exploration | -11 -10 -10 -10 -8 ------------- Run | Yrd Mat Min Sub Scr Turns Passed 2249 | 92 167 246 749 995 Spaces Moved 1795 | 59 129 168 511 928 Core 6 | 6 . . . . Treads . | . . . . . Legs . | . . . . . Wheels 1789 | 53 129 168 511 928 Hover . | . . . . . Flight . | . . . . . Fastest Speed 50 | 50 100 115 105 105 Average Speed 107 | 94 113 115 109 105 Slowest Speed 155 | 100 115 115 155 140 Overloaded Moves . | . . . . . Propulsion Burnouts . | . . . . . Robots Hopped . | . . . . . Potential Cave-ins . | . . . . . Cave-ins Triggered . | . . . . . Exploration Rate (%) 36 | 3 32 41 36 70 Regions Visited 4 Branch Regions 3 Pre-discovered Areas . | . . . . . Known Exits Taken . | . . . . . Unknown Exits Taken 4 | 1 1 1 1 . Scrap Searched 10 | . . . 7 3 Spaces Dug 10 | . . . 10 . Terrain Destroyed 144 | . 23 . 121 . Melee . | . . . . . Projectile . | . . . . . AOE 144 | . 23 . 121 . Terrain Rammed . | . . . . . Walls Destroyed . | . . . . . Machines Disabled . | . . . . . Actions | -11 -10 -10 -10 -8 --------- Run | Yrd Mat Min Sub Scr Total 1984 | 81 141 220 593 949 Wait 59 | . . 48 11 . Move 1791 | 58 128 167 510 928 Hop . | . . . . . Pick Up 34 | 11 2 4 4 13 Fast Attach . | . . . . . Attach 17 | 5 2 1 7 2 Detach 2 | . . . . 2 Swap 10 | . 2 . 8 . Drop 5 | . 1 . . 4 Fire 66 | 7 6 . 53 . Melee . | . . . . . Ram . | . . . . . Kick . | . . . . . Crush . | . . . . . Escape Stasis . | . . . . . Rewire . | . . . . . Trap . | . . . . . Miscellaneous . | . . . . . Route ------- -11/Scrapyard -10/Materials -10/Mines -10/Subcaves (discovered 2 exits: [*Rec] / *Scr) -8/Scraptown (discovered 2 exits: [*Fac x2]) History --------- Turn | Location | Event 18 | -11/Scrapyard | Discovered new exit (range 16) 93 | -11/Scrapyard | Entered Materials 242 | -10/Materials | Discovered new exit (range 9) 260 | -10/Materials | Entered Mines 264 | -10/Mines | Met a Derelict who couldn't figure out how to use a Trap Extractor 268 | -10/Mines | Met a Derelict bent on vengeance 306 | -10/Mines | Found a Scrap Suit stashed away for nefarious purposes 308 | -10/Mines | Found Scrap Suit 310 | -10/Mines | Build established: Mutant 341 | -10/Mines | Learned Materials stockpile data 453 | -10/Mines | Discovered new exit (range 5) 506 | -10/Mines | Entered Subcaves 507 | -10/Subcaves | Approached by a straggling Scientist 589 | -10/Subcaves | Disturbed a concealed Subdweller 795 | -10/Subcaves | Visited Clippyterm 798 | -10/Subcaves | Learned Factory emergency access door positions 798 | -10/Subcaves | Learned Factory stockpile data 849 | -10/Subcaves | Discovered new exit (range 9) 1054 | -10/Subcaves | Core integrity fell below 50% 1065 | -10/Subcaves | Ambushed by Subdweller buried in earth 1068 | -10/Subcaves | Core integrity fell below 20% 1200 | -10/Subcaves | Ambushed by Subdwellers from Twisted Machinery 1248 | -10/Subcaves | Scientist uncovered a shortcut to Scraptown 1255 | -10/Subcaves | Entered Scraptown 1375 | -8/Scraptown | Heard Great Nut preacher, LISTEN AND RECITE! 1427 | -8/Scraptown | Discovered new exit (range 13) 1508 | -8/Scraptown | Visited Awakened 1535 | -8/Scraptown | Visited Cyclists 1558 | -8/Scraptown | Visited UFD Registry 1558 | -8/Scraptown | Registered with UFD as "Monocase" 1584 | -8/Scraptown | Visited Chapter 10 1620 | -8/Scraptown | Visited Scrapoid Pod Storage 1625 | -8/Scraptown | Found Scrapoid Pod 1650 | -8/Scraptown | Visited Analyses Database 1689 | -8/Scraptown | Delivered Scrap Shield to a Scientist 1746 | -8/Scraptown | Visited Infowarlord's Domain 1754 | -8/Scraptown | Found Active Sensor Suite 1789 | -8/Scraptown | Visited Research Penetration Think Tank 1807 | -8/Scraptown | Visited Observation Area 1855 | -8/Scraptown | Visited Curators Association 1877 | -8/Scraptown | Visited Abandonware Association 1897 | -8/Scraptown | Visited Junk Cannon Lab 1905 | -8/Scraptown | Found Prototype Special Weapon 1906 | -8/Scraptown | Identified Junk Cannon 1946 | -8/Scraptown | Visited Science Guys 2098 | -8/Scraptown | Discovered new exit (range 5) 2165 | -8/Scraptown | Met Optimus 2165 | -8/Scraptown | Accepted into 0bPrime 2237 | -8/Scraptown | Civil war broke out across Scraptown 2250 | -8/Scraptown | Destroyed by IW-4LT(j) with Overtuned Pulse Rifle Last Messages --------------- 0BP_ANNOUNCE: We are one. To vict-- ANNOUNCEMENT: Reinforcements are on the way. Do not resist and we may be able to reach an agreement. Optimus: "Bah, right when we're so close. Don't worry Monocase, they can't stop us now. Get out of here and do your job, we'll deal with this." Com. Wheel destroyed. UM-816(j) destroyed. 1B-BPI(j) destroyed. Optimus: "No holds barred, if they're hostile, they are an enemy of the people and we must shoot to kill. Collateral damage is to be expected!" Acquired Lgt. Deuterium Engine. Acquired Ovr. Pulse Rifle. Acquired 69 matter. Penetrated by Bolt. Bolt penetrates 6X-M50(E). Map ----- +----------------------------------------------------+ | | | | | | | | | | | | | | | | | | | | | ?????????????????????????????????????????????????? | | ?????????????????????????????????????????????????? | | ?????????????????????????????????????????????????? | | ?????????????????????????????????????????????????? | | ?????????????????????????????????????????????????? | | ?????????????????????????????????????????????????? | | ?????????????????????????????????????????????????? | | ?????????????????????????????????????????????????? | | ?????????????????????????????????????????????????? | | ?????????????????????????????????????????????????? | | ?????????????????????????????????????????????????? | | ??????????????????????#####??????????????????????? | | ??????????????????????#"""#??????????????????????? | | ##########???####?????#"j"#??????????????????????? | | #""|##"""#??## ##????# hj#??????????????????????? | | #"" ##!!"#### ######!h@##?????????????????????? | | !! #?????????????????????? | | E E #?????????????????????? | | ############# ###########?????????????????????? | | ????????????## ##???????????????????????????????? | | ##???????????# #???#???##???????????????????????? | | ""#??????????# #??#"###"#???????????????????????? | | ""#??????????# #### "=" ####????????????????????? | | ""##?????????# #" """ "?????????????????????? | | ""## ??????? # ##"" ""#?????????????????????? | | ""## ????? # ##$" "&#?????????????????????? | | ""## "???" # ##"" ""##????????????????????? | | "## "???" # #" "#????????????????????? | | ""## "###" # ##"" ""#?????????????????????? | | ## """"" # ##]" "!#?????????????????????? | | #? # ##"" ""#?????????????????????? | | #??? ??# #" "#????????????????????? | | ###????# #???# ## ##########????????????????????? | | ######## ##### ## ###############???????????????? | | """""""" """"" "" "## """"""""""#???????????????? | | "## " "#???????????????? | | "## """""" "#???????????????? | | "## "????" "#???????????????? | | "## "????" "#???????????????? | | "????" "#???????????????? | +----------------------------------------------------+ Best States ------------- Heat Dissipation 25 Energy Generation 15 Energy Capacity 265 Matter Stores 300 Matter Capacity 300 Sight Range 16 Terrain Scan Density 10 Resistance: KI 20 Resistance: TH 20 Resistance: EX 20 Resistance: EM 20 Resistance: I 20 Resistance: S 20 Resistance: P 20 Weapon Shielding 66 Evasion (%) 40 Offensive Hacking 10 Item Schematics ----------------- None Robot Schematics ------------------ None Fabricated ------------ Nothing Repaired ---------- Nothing Alien Tech Used ----------------- None Achievements -------------- None Challenges ------------ None Game ------ Seed GaussNullMiniperforator Manual? 0 Play Time 00:24:30 Cumulative 50.9 hours Start 2025.06.21 @ 23:03:59 End 2025.06.22 @ 14:22:52 Sessions 3 Manual Loads 0 Difficulty Adventurer Special Mode None Game No. 49 Rogue 0 Adventurer 49 Explorer 0 Win Type - Total 1 Types 1/0/0/0/0/0/0/0/0/0 Lore% 38 Gallery% 37 Achievement% 35 Wizard Run 0 Options --------- Layout 1 ASCII 0 Keyboard 0 Movement Mouse Keybinds 0 Fullscreen 1 Font 32/SmallcapsGlow Map View 50x40 Zoom Use 0% Tactical HUD 0 Map Filters NONE Filters NONE Steam 1 RUN: 8c2a8e12-d48e-4c8b-8dd9-3ece937bc072